Cogmind - Beta 12 @@@ ROGUE MODE // 2023.04.27 @ 23:15:14 Player: Mr Goldstein Result: Destroyed by S-27 Virus with Autogun Performance ------------- Evolutions (4) 2000 Regions Visited (9) 1800 Robots Destroyed (0) 0 Value Destroyed (210) 210 Prototype IDs (5) 100 Alien Tech Used (0) 0 Bonus (2870) 2870 TOTAL SCORE: 6980 Bonus ------- Pacifist 1325 Follower Combat Kills 345 Entered Garrisons 200 Used RIF Installer 500 Entered DSFs 500 Cogmind --------- Core Integrity 0/850 Matter 295/300 Energy 99/100 System Corruption 11% Temperature Cool (9) Movement Core (50) Location -6/Extension Parts ------- > --- POWER (2) -------- (None) > --- PROPULSION (7) --- (None) > --- UTILITY (4) ------ Advanced Visual Processing Unit > --- WEAPON (2) ------- Power Sword > --- INVENTORY (5) ---- Micro Nuclear Core Cold Fusion Reactor Improved Datajack Segregator Peak State ------------ > --- POWER ------------ Nuclear Core Nuclear Core > --- PROPULSION ------- Cesium-ion Thruster Cesium-ion Thruster Cesium-ion Thruster Cesium-ion Thruster Cesium-ion Thruster Cesium-ion Thruster > --- UTILITY ---------- Improved Heat Sink > --- WEAPON ----------- Heavy Linear Accelerator > --- INVENTORY -------- Cesium-ion Thruster Relay Coupler [Grunt] Relay Coupler [Hunter] Improved Datajack Segregator [Rating: 44] Favorites ----------- Power Nuclear Core Power Core Nuclear Core Reactor Cold Fusion Reactor Propulsion Cesium-ion Thruster Flight Unit Cesium-ion Thruster Utility Advanced Visual Processing Unit Device Improved Heat Sink Processor Advanced Visual Processing Unit Hackware Relay Coupler [Grunt] Weapon Power Sword Ballistic Cannon Heavy Linear Accelerator Slashing Weapon Power Sword Special Melee Weapon Improved Datajack Build | -11 -10 -10 -9 -8 -7 -7 -7 -6 -6 ------- Run | Jun Mat Min Mat Mat Fac DSF Gar Fac Ext Slots Evolved 8 | . . . 2 2 2 . . 2 . Power 1 | . . . . . 1 . . . . Propulsion 5 | . . . 2 2 . . . 1 . Utility 2 | . . . . . 1 . . 1 . Weapon . | . . . . . . . . . . Parts Attached 27 | . . . . . 2 . 18 7 . Power 4 | . . . . . . . 2 2 . Engine . | . . . . . . . . . . Core 3 | . . . . . . . 2 1 . Reactor 1 | . . . . . . . . 1 . Propulsion 12 | . . . . . 2 . 8 2 . Treads . | . . . . . . . . . . Leg . | . . . . . . . . . . Wheel . | . . . . . . . . . . Hover . | . . . . . . . . . . Flight 12 | . . . . . 2 . 8 2 . Utility 4 | . . . . . . . 2 2 . Device 1 | . . . . . . . 1 . . Storage . | . . . . . . . . . . Processor 1 | . . . . . . . 1 . . Hackware 2 | . . . . . . . . 2 . Protection . | . . . . . . . . . . Artifact . | . . . . . . . . . . Weapon 7 | . . . . . . . 6 1 . Energy Gun . | . . . . . . . . . . Energy Cannon . | . . . . . . . . . . Ballistic Gun . | . . . . . . . . . . Ballistic Cannon 1 | . . . . . . . 1 . . Launcher . | . . . . . . . . . . Special Weapon . | . . . . . . . . . . Impact Weapon . | . . . . . . . . . . Slashing Weapon 4 | . . . . . . . 3 1 . Piercing Weapon . | . . . . . . . . . . Special Melee Weapon 2 | . . . . . . . 2 . . Unidentified Prototypes 2 | . . . . . . . . 2 . Parts Lost 11 | . . . . . . 1 1 7 2 Power . | . . . . . . . . . . Propulsion 8 | . . . . . . 1 1 6 . Utility 3 | . . . . . . . . 1 2 Weapon . | . . . . . . . . . . Highest Loss Streak 6 | . . . . . . 1 1 6 2 To Critical Strikes . | . . . . . . . . . . Average Slot Usage (%) 27 | . . . . . 15 9 41 56 19 Core 2 | . . . . . . . 6 4 . Flight 12 | . . . . . 15 9 25 22 . Device 1 | . . . . . . . 2 4 . Processor 3 | . . . . . . . 1 6 6 Hackware 3 | . . . . . . . . 8 6 Slashing Weapon 3 | . . . . . . . 2 6 6 Naked Turns 207 | . 28 23 100 56 . . . . . Heaviest Build 17 | . . . . . . . 17 17 3 Greatest Support 30 | 3 3 3 3 3 9 9 30 25 3 Greatest Overweight (x) 2 | . . . . . . . 2 . . Average Overweight (x) . | . . . . . . . . . . Largest Inventory Capacity 5 | 5 5 5 5 5 5 5 5 5 5 Average Capacity 5 | 5 5 5 5 5 5 5 5 5 5 Most Carried 5 | . . . 1 3 2 4 5 5 4 Average Carried 3 | . . . . 2 1 2 4 4 4 Final Capacity 5 | 5 5 5 5 5 5 5 5 5 5 Final Carried 5 | . . . 1 3 1 4 5 4 4 Class Distribution -------------------- 62% | Mutant 29% | Scavenger-Sprinter 8% | Sprinter Dominant Class ---------------- Mutant | -10/Materials Mutant | -10/Mines Mutant | -9/Materials Mutant | -8/Materials Mutant | -7/Factory Mutant | -7/DSF Scavenger-Sprinter | -7/Garrison Scavenger-Sprinter | -6/Factory Mutant | -6/Extension Resources | -11 -10 -10 -9 -8 -7 -7 -7 -6 -6 ----------- Run | Jun Mat Min Mat Mat Fac DSF Gar Fac Ext Matter Collected 377 | 200 . . . . . . 173 . 4 Remotely . | . . . . . . . . . . Salvage Created . | . . . . . . . . . . Parts . | . . . . . . . . . . Haulers Intercepted . | . . . . . . . . . . Recyclers Shooed . | . . . . . . . . . . Parts Field Recycled . | . . . . . . . . . . Retrieved Matter . | . . . . . . . . . . Parts Self-Destructed . | . . . . . . . . . . Prevented . | . . . . . . . . . . Kills | -11 -10 -10 -9 -8 -7 -7 -7 -6 -6 ------- Run | Jun Mat Min Mat Mat Fac DSF Gar Fac Ext Combat Hostiles Destroyed . | . . . . . . . . . . Classes Destroyed . | . . . . . . . . . . Best Kill Streak . | . . . . . . . . . . Combat Bots Only . | . . . . . . . . . . Max Kills in Single Turn . | . . . . . . . . . . Gunslinging . | . . . . . . . . . . Exploded . | . . . . . . . . . . Melee . | . . . . . . . . . . Uniques/NPCs Destroyed . | . . . . . . . . . . Combat | -11 -10 -10 -9 -8 -7 -7 -7 -6 -6 -------- Run | Jun Mat Min Mat Mat Fac DSF Gar Fac Ext Damage Taken 2123 | . . . 276 302 . 87 326 309 823 Core 1711 | . . . 276 302 . 62 216 80 775 Absorbed by Shields 27 | . . . . . . . 27 . . Core Remaining (%) 67 | 100 . 100 31 45 . . 60 . . Volleys Fired . | . . . . . . . . . . Largest . | . . . . . . . . . . Hottest . | . . . . . . . . . . Shots Fired . | . . . . . . . . . . Gun . | . . . . . . . . . . Cannon . | . . . . . . . . . . Launcher . | . . . . . . . . . . Special . | . . . . . . . . . . Kinetic . | . . . . . . . . . . Thermal . | . . . . . . . . . . Explosive . | . . . . . . . . . . Electromagnetic . | . . . . . . . . . . Robot Hit Streak . | . . . . . . . . . . Robot Miss Streak . | . . . . . . . . . . Penetration Max . | . . . . . . . . . . Secondary Targets . | . . . . . . . . . . Shots Hit Robots 16 | . . . . . . . 16 . . Core Hits 1 | . . . . . . . . . 1 Critical Kills . | . . . . . . . . . . Critical Parts Destroyed . | . . . . . . . . . . Critical Strikes . | . . . . . . . . . . Melee Attacks 28 | . . . . . . . 25 2 1 Impact . | . . . . . . . . . . Slashing 12 | . . . . . . . 9 2 1 Piercing . | . . . . . . . . . . Sneak Attacks 16 | . . . . . . . 16 . . Combat Hostiles . | . . . . . . . . . . Follow-up Attacks . | . . . . . . . . . . Damage Inflicted 116 | . . . 18 . . . . . 98 Guns . | . . . . . . . . . . Cannons . | . . . . . . . . . . Explosions . | . . . . . . . . . . Melee . | . . . . . . . . . . Ramming 116 | . . . 18 . . . . . 98 Kinetic . | . . . . . . . . . . Thermal . | . . . . . . . . . . Explosive . | . . . . . . . . . . Electromagnetic . | . . . . . . . . . . Impact . | . . . . . . . . . . Slashing . | . . . . . . . . . . Piercing . | . . . . . . . . . . Highest Corruption 11 | . . . . . . . . 2 11 Average Corruption 4 | . . . . . . . . 1 6 Corruption Purged . | . . . . . . . . . . Corruption Blocked . | . . . . . . . . . . Effects 12 | . . . . . . . . 4 8 Message Errors 1 | . . . . . . . . 1 . Matter Fused 3 | . . . . . . . . 1 2 Heat Flow Errors 2 | . . . . . . . . 1 1 Energy Discharges 2 | . . . . . . . . 1 1 Data Loss (minor) 1 | . . . . . . . . . 1 Data Loss (major) 1 | . . . . . . . . . 1 Misdirections 2 | . . . . . . . . . 2 Overload Shots . | . . . . . . . . . . Overflow Damage . | . . . . . . . . . . Projectiles . | . . . . . . . . . . Explosions . | . . . . . . . . . . Melee . | . . . . . . . . . . Knockbacks . | . . . . . . . . . . Impact . | . . . . . . . . . . Kinetic . | . . . . . . . . . . Secondary . | . . . . . . . . . . Self-Inflicted Damage 53 | . . . 8 . . . . . 45 Shots . | . . . . . . . . . . Rammed 22 | . . . 6 . . . . . 16 Targets Rammed 22 | . . . 6 . . . . . 16 Kicked . | . . . . . . . . . . Crushed . | . . . . . . . . . . Highest Temperature 232 | . . . . . . . 23 87 232 Average Temperature 33 | . . . . . . . 6 56 121 Received Heat Transfer 669 | . . . 72 171 . . 108 105 213 Siege Activations . | . . . . . . . . . . Robots Corrupted . | . . . . . . . . . . Combat Hostiles . | . . . . . . . . . . Parts Fried . | . . . . . . . . . . Impact Corruptions . | . . . . . . . . . . Robots Melted . | . . . . . . . . . . Combat Hostiles . | . . . . . . . . . . Parts Melted . | . . . . . . . . . . Heat Transferred . | . . . . . . . . . . Parts Sabotaged . | . . . . . . . . . . Parts Stolen . | . . . . . . . . . . Parts Stripped . | . . . . . . . . . . Power Chain Reactions . | . . . . . . . . . . Missiles Intercepted . | . . . . . . . . . . Alert | -11 -10 -10 -9 -8 -7 -7 -7 -6 -6 ------- Run | Jun Mat Min Mat Mat Fac DSF Gar Fac Ext Peak Influence 527 | . . . 135 116 52 39 419 367 527 Initial 219 | . . . . 56 52 39 21 219 179 Average 206 | . . . 49 84 52 32 220 277 316 Maximum Alert Level 2 | . . . . . . . 2 1 2 Low Security (%) 45 | 100 100 100 100 100 100 100 38 . 26 Level 1 44 | . . . . . . . 55 100 41 Level 2 9 | . . . . . . . 5 . 32 Level 3 . | . . . . . . . . . . Level 4 . | . . . . . . . . . . Level 5 . | . . . . . . . . . . High Security . | . . . . . . . . . . Max Security . | . . . . . . . . . . Squads Dispatched 13 | . . . 2 3 . . . 3 5 Investigation 6 | . . . . . . . . 1 5 Extermination . | . . . . . . . . . . Reinforcement 7 | . . . 2 3 . . . 2 . Assault . | . . . . . . . . . . Garrison . | . . . . . . . . . . Intercept . | . . . . . . . . . . Searches Triggered . | . . . . . . . . . . Construction Impeded . | . . . . . . . . . . Haulers Reinforced . | . . . . . . . . . . Active Scanning Responses . | . . . . . . . . . . Cargo Convoy Interrupts . | . . . . . . . . . . Stealth | -11 -10 -10 -9 -8 -7 -7 -7 -6 -6 --------- Run | Jun Mat Min Mat Mat Fac DSF Gar Fac Ext Distress Signals 2 | . . . . 1 . . . . 1 Communications Jammed . | . . . . . . . . . . Distress Signals . | . . . . . . . . . . Times Spotted 99 | . . . 9 12 . 1 28 19 30 Peak Tracking Total 15 | . . . 11 14 . 1 15 8 13 Tactical Retreats 17 | . . . 2 . . . 3 4 8 Traps | -11 -10 -10 -9 -8 -7 -7 -7 -6 -6 ------- Run | Jun Mat Min Mat Mat Fac DSF Gar Fac Ext Traps Triggered 8 | . . . 1 . . . 2 . 5 Indirectly . | . . . . . . . . . . Trap Hack Attempts . | . . . . . . . . . . Triggered . | . . . . . . . . . . Disarmed . | . . . . . . . . . . Reprogrammed . | . . . . . . . . . . Reused . | . . . . . . . . . . Traps Extracted . | . . . . . . . . . . Installed . | . . . . . . . . . . Triggered . | . . . . . . . . . . Machines | -11 -10 -10 -9 -8 -7 -7 -7 -6 -6 ---------- Run | Jun Mat Min Mat Mat Fac DSF Gar Fac Ext Machines Disabled 2 | . . . . . . . 1 . 1 Max in Single Turn 1 | . . . . . . . 1 . 1 Garrison Relay 1 | . . . . . . . 1 . . Energy Cycler 1 | . . . . . . . . . 1 Machines Repaired . | . . . . . . . . . . Machines Sabotaged . | . . . . . . . . . . Overloaded Fab Kills . | . . . . . . . . . . Hacking | -11 -10 -10 -9 -8 -7 -7 -7 -6 -6 --------- Run | Jun Mat Min Mat Mat Fac DSF Gar Fac Ext Machines Accessed 18 | . . . . . 1 . 2 4 11 Terminals 17 | . . . . . 1 . 2 3 11 Fabricators 1 | . . . . . . . . 1 . Repair Stations . | . . . . . . . . . . Recycling Units . | . . . . . . . . . . Scanalyzers . | . . . . . . . . . . Garrison Access . | . . . . . . . . . . Total Hacks 35 | . . . . . 1 . 4 7 23 Successful 12 | . . . . . 1 . 2 2 7 Failed 23 | . . . . . . . 2 5 16 Catastrophic 6 | . . . . . . . . 2 4 Database Lockouts . | . . . . . . . . . . Manual 3 | . . . . . . . . . 3 Terminals 34 | . . . . . 1 . 4 6 23 Fabricators 1 | . . . . . . . . 1 . Repair Stations . | . . . . . . . . . . Recycling Units . | . . . . . . . . . . Scanalyzers . | . . . . . . . . . . Garrison Access . | . . . . . . . . . . Terminal Hacks 11 | . . . . . 1 . 2 1 7 Prototype ID Bank 1 | . . . . . . . . . 1 Open Door 5 | . . . . . . . . . 5 Open DSF 1 | . . . . . 1 . . . . Level Access Points 1 | . . . . . . . . . 1 Branch Access Points 1 | . . . . . . . . 1 . Emergency Access Points 1 | . . . . . . . 1 . . Patrol Navigation 1 | . . . . . . . 1 . . Fabricator Hacks 1 | . . . . . . . . 1 . Network Status 1 | . . . . . . . . 1 . Repair Station Hacks . | . . . . . . . . . . Recycling Unit Hacks . | . . . . . . . . . . Scanalyzer . | . . . . . . . . . . Garrison Access Hacks . | . . . . . . . . . . Unauthorized Hacks . | . . . . . . . . . . Terminals . | . . . . . . . . . . Fabricators . | . . . . . . . . . . Repair Stations . | . . . . . . . . . . Recycling Units . | . . . . . . . . . . Scanalyzers . | . . . . . . . . . . Garrison Access . | . . . . . . . . . . Data Cores Recovered . | . . . . . . . . . . Used . | . . . . . . . . . . Hacking Detections 10 | . . . . . . . 2 2 6 Full Trace Events 5 | . . . . . . . . 1 4 Feedback Events 1 | . . . . . . . . 1 . Corruption 1 | . . . . . . . . 1 . Feedback Blocked . | . . . . . . . . . . Robot Schematics Acquired . | . . . . . . . . . . Robots Built . | . . . . . . . . . . Authchips . | . . . . . . . . . . Time . | . . . . . . . . . . Total Robot Build Rating . | . . . . . . . . . . Part Schematics Acquired . | . . . . . . . . . . Parts Built . | . . . . . . . . . . Authchips . | . . . . . . . . . . Time . | . . . . . . . . . . Total Part Build Rating . | . . . . . . . . . . Parts Repaired . | . . . . . . . . . . Time . | . . . . . . . . . . Parts Recycled . | . . . . . . . . . . Recycled Matter . | . . . . . . . . . . Retrieved Matter . | . . . . . . . . . . Retrieved Components . | . . . . . . . . . . Parts Scanalyzed . | . . . . . . . . . . Part Schematics Acquired . | . . . . . . . . . . Parts Damaged . | . . . . . . . . . . Bothacking | -11 -10 -10 -9 -8 -7 -7 -7 -6 -6 ------------ Run | Jun Mat Min Mat Mat Fac DSF Gar Fac Ext Used RIF Installer 1 | . . . . . . . 1 . . Robots Hacked . | . . . . . . . . . . Non-combat . | . . . . . . . . . . Combat . | . . . . . . . . . . Robot Hacks Applied . | . . . . . . . . . . Relay Couplers Released 5 | . . . . . . . 5 . . Machine Destruction 5 | . . . . . . . 5 . . Attached 2 | . . . . . . . . 2 . Fabnet Peak Effective % . | . . . . . . . . . . Robots Rewired 9 | . . . . . . . 9 . . Allies Hacked . | . . . . . . . . . . Hacks Repelled . | . . . . . . . . . . Allies | -11 -10 -10 -9 -8 -7 -7 -7 -6 -6 -------- Run | Jun Mat Min Mat Mat Fac DSF Gar Fac Ext Total Allies 13 | . . . . . . . 9 . 4 Largest Group 5 | . . . . . . . 5 . 2 Highest-Rated Group 148 | . . . . . . . 148 . 56 Highest-Rated Ally 40 | . . . . . . . 40 . 31 Total Orders . | . . . . . . . . . . Ally Attacks 53 | . . . . . . . 39 . 14 Total Damage 1191 | . . . . . . . 977 . 214 Kills 12 | . . . . . . . 12 . . Allies Corrupted . | . . . . . . . . . . Allies Melted 1 | . . . . . . . . . 1 Intel | -11 -10 -10 -9 -8 -7 -7 -7 -6 -6 ------- Run | Jun Mat Min Mat Mat Fac DSF Gar Fac Ext Robot Analysis Total . | . . . . . . . . . . Derelict Logs Recovered . | . . . . . . . . . . Drone Launches . | . . . . . . . . . . Drone Recoveries . | . . . . . . . . . . Exploration | -11 -10 -10 -9 -8 -7 -7 -7 -6 -6 ------------- Run | Jun Mat Min Mat Mat Fac DSF Gar Fac Ext Turns Passed 906 | 9 28 23 100 56 5 31 259 159 236 Spaces Moved 1849 | 18 56 45 185 107 9 81 508 526 314 Core 755 | 18 56 45 185 107 . . 2 28 314 Treads . | . . . . . . . . . . Legs . | . . . . . . . . . . Wheels . | . . . . . . . . . . Hover . | . . . . . . . . . . Flight 1094 | . . . . . 9 81 506 498 . Fastest Speed 20 | 50 50 50 50 50 32 32 20 23 50 Average Speed 36 | 50 50 50 50 50 32 33 26 27 50 Slowest Speed 150 | 50 50 50 50 50 32 35 150 50 50 Overloaded Moves . | . . . . . . . . . . Propulsion Burnouts . | . . . . . . . . . . Robots Hopped 23 | . . . . . . 1 6 16 . Cave-ins Triggered . | . . . . . . . . . . Exploration Rate (%) 37 | 3 22 28 30 27 . 88 57 19 66 Regions Visited 9 Branch Regions 2 Pre-discovered Areas . | . . . . . . . . . . Known Exits Taken 2 | . . . . . 1 . . 1 . Unknown Exits Taken 5 | 1 1 1 1 1 . . . . . Scrap Searched . | . . . . . . . . . . Spaces Dug 2 | . . . . . . . . 2 . Terrain Destroyed 2 | . . . . . . . . 2 . Melee 2 | . . . . . . . . 2 . Projectile . | . . . . . . . . . . AOE . | . . . . . . . . . . Terrain Rammed . | . . . . . . . . . . Walls Destroyed . | . . . . . . . . . . Machines Disabled . | . . . . . . . . . . Actions | -11 -10 -10 -9 -8 -7 -7 -7 -6 -6 --------- Run | Jun Mat Min Mat Mat Fac DSF Gar Fac Ext Total 2033 | 17 55 44 191 108 10 82 611 524 391 Wait 30 | . . . . . . . 30 . . Move 1796 | 17 55 44 184 106 8 78 494 496 314 Hop 20 | . . . . . . 1 6 13 . Pick Up 11 | . . . 1 2 . 3 5 . . Fast Attach 13 | . . . . . . . 10 3 . Attach 11 | . . . . . 2 . 6 3 . Detach 5 | . . . . . . . 3 2 . Swap 3 | . . . . . . . 2 1 . Drop 10 | . . . . . . . 6 4 . Fire . | . . . . . . . . . . Melee 28 | . . . . . . . 25 2 1 Ram 22 | . . . 6 . . . . . 16 Kick . | . . . . . . . . . . Crush . | . . . . . . . . . . Escape Stasis 84 | . . . . . . . 24 . 60 Rewire . | . . . . . . . . . . Trap . | . . . . . . . . . . Miscellaneous . | . . . . . . . . . . Route ------- -11/Junkyard -10/Materials -10/Mines -9/Materials (discovered 4 exits: [*Mat] / [*Min] / [*Sto x2]) -8/Materials -7/Factory -7/DSF -7/Garrison -6/Factory (discovered 4 exits: Low x2 / *Ext x2) -6/Extension (discovered 3 exits: *Fac x2 / [*Cet]) History --------- Turn | Location | Event 3 | -11/Junkyard | Discovered new exit (range 15) 10 | -11/Junkyard | Entered Materials 34 | -10/Materials | Discovered new exit (range 9) 38 | -10/Materials | Entered Mines 56 | -10/Mines | Discovered new exit (range 7) 61 | -10/Mines | Entered Materials 61 | -9/Materials | Evolved 2 slots: Propulsion x2 64 | -9/Materials | Discovered new exit (range 10) 91 | -9/Materials | Discovered new exit (range 14) 103 | -9/Materials | Discovered new exit (range 16) 150 | -9/Materials | Discovered new exit (range 16) 156 | -9/Materials | Core integrity fell below 50% 161 | -9/Materials | Entered another Materials area 161 | -8/Materials | Evolved 2 slots: Propulsion x2 209 | -8/Materials | Discovered new exit (range 16) 216 | -8/Materials | Core integrity fell below 50% 217 | -8/Materials | Entered Factory 217 | -7/Factory | Evolved 2 slots: Power x1, Utility x1 222 | -7/Factory | Identified exit to DSF 222 | -7/Factory | Entered DSF 243 | -7/DSF | Additional patrols routed to DSF 246 | -7/DSF | Discovered new exit (range 12) 253 | -7/DSF | Entered Garrison 270 | -7/Garrison | Triggered checkpoint 301 | -7/Garrison | Build established: Mutant 330 | -7/Garrison | Triggered checkpoint 388 | -7/Garrison | Triggered checkpoint 416 | -7/Garrison | Discovered new exit (range 10) 422 | -7/Garrison | Triggered checkpoint 438 | -7/Garrison | Garrison Relay disabled 456 | -7/Garrison | Triggered checkpoint 480 | -7/Garrison | Triggered checkpoint 486 | -7/Garrison | Installed Relay Interface Framework 512 | -7/Garrison | Entered Factory 512 | -6/Factory | Evolved 2 slots: Propulsion x1, Utility x1 619 | -6/Factory | Identified exit to Lower Caves 619 | -6/Factory | Identified exit to Extension 671 | -6/Factory | Entered Extension 688 | -6/Extension | Lost 6 parts (5n1u) 720 | -6/Extension | Rescued a captive Derelict 721 | -6/Extension | Rescued a captive Derelict 744 | -6/Extension | Identified exit to Factory 751 | -6/Extension | Rescued a captive Derelict 786 | -6/Extension | Rescued a captive Derelict 788 | -6/Extension | Spotted B-75 Beast 790 | -6/Extension | System corruption reached 10% 792 | -6/Extension | Spotted B-75 Beast 793 | -6/Extension | Core integrity fell below 50% 802 | -6/Extension | Core integrity fell below 20% 814 | -6/Extension | Rescued a captive Derelict 818 | -6/Extension | Rescued a captive Derelict 889 | -6/Extension | Rescued a captive Derelict 890 | -6/Extension | Rescued a captive Derelict 904 | -6/Extension | Discovered new exit (range 6) 907 | -6/Extension | Energy Cycler disabled 907 | -6/Extension | Destroyed by S-27 Virus with Autogun Last Messages --------------- 00888_ Connecting with Door Terminal... >>Open(Door) Sealed Heavy Doors opened. 00893_ Connecting with Door Terminal... 00893_ ALERT: Suspicious activity at Terminal E006. Dispatching Investigation squad. 00904_ EXIT=FOUND 00905_ Slammed into G-50 Soldier. 00906_ System corrupted: Matter fused (-5). 00906_ R-10 Processor exits Transfer Station. 00906_ K-01 Serf exits Transfer Station. 00906_ Slammed into G-50 Soldier. 00907_ ALERT: Power surge detected, dispatching additional patrols. 00907_ C-30 ARC bursts open, deploying its payload. 00907_ G-67 Veteran unfolds itself. 00907_ G-50 Soldier unfolds itself. 00907_ C-30 ARC bursts open, deploying its payload. 00907_ S-27 Virus unfolds itself. 00907_ C-30 ARC bursts open, deploying its payload. 00907_ H-66 Slayer unfolds itself. Map ----- +----------------------------------------------------+ | ##### ####????? | | #????? | | ####""T""### ########### #????? | | ???#"""""## T#???????# #????? | | ???######### ##???????# #????? | | ???????????# #????????# #????? | | ???????????####????????# #????? | | ???????????????????????# #????? | | ???????????????????????# #????? | | ???????????????????????# #????? | | ???????????????????????# #????? | | ???????????????????????# #????? | | ???????????????????????# #????? | | ???????????????????????# #????? | | ???????????????????????# #????? | | ???????????????????????# #????? | | ???????????????????????# #????? | | ???????????????????????# #????? | | ???????????????????????# #????? | | ???????????????????????# #????? | | ???????????????????????# #????? | | ???????????????????????# #????? | | ???????????????????##### ####?? | | ???????????????????# "" "" #?? | | ?????????????????### " " #?? | | ?????????? gg@ sgs# | | ?????????? *g] gs%# | | ?????????? g # | | ??????????? ! ### | | ??????????? ut h?? | | ????????????########k !h< ? | | ???????????????????# kR # | | ???????????????????###" "#### | | ?????????????????????#" "#??? | | ?????????????????????#"""""#??? | | ??????????????????????#####???? | | ??????????????????????????????? | | ??????????????????????????????? | | | | | | | | | | | | | | | | | | | | | | | | | +----------------------------------------------------+ Best States ------------- Heat Dissipation 51 Energy Generation 24 Energy Capacity 380 Matter Stores 300 Matter Capacity 300 Sight Range 20 Terrain Scan Density 10 Evasion (%) 66 Relay Coupler Types 2 Relay Coupler Value 47 Item Schematics ----------------- None Robot Schematics ------------------ None Fabricated ------------ Nothing Alien Tech Used ----------------- None Achievements -------------- None Challenges ------------ None Game ------ Seed TargetGodStreamer Manual? 0 Play Time 00:19:57 Cumulative 155.3 hours Start 2023.04.27 @ 22:57:47 End 2023.04.27 @ 23:15:14 Sessions 1 Manual Loads 0 Difficulty Rogue Special Mode None Game No. 468 Rogue 468 Adventurer 0 Explorer 0 Win Type - Total 7 Types 6/0/0/1/0/0/0/0/0 Lore% 66 Gallery% 72 Achievement% 61 Wizard Run 0 Options --------- ASCII 0 Keyboard 0 Movement Numpad Keybinds 0 Fullscreen 1 Font 16/SmallcapsGlow Map View 75x55 Tactical HUD 1 Map Filters NONE Filters NONE Steam 1 RUN: 1cf9f7cc-0fe4-4d19-a485-5adbbb4a8e71